Cogmind - Beta 17 @@@ ROGUE MODE // 2026.07.09 @ 17:48:50 Player: Ammie Result: Destroyed by as-38103 with Assembled Heavy Rifle Performance ------------- Evolutions (0) 0 Regions Visited (4) 800 Robots Destroyed (35) 175 Value Destroyed (741) 741 Prototype IDs (24) 480 Alien Tech Used (0) 0 Bonus (300) 300 TOTAL SCORE: 2496 Bonus ------- Aligned with FarCom 300 Cogmind --------- Core Integrity 0/250 Matter 270/300 Energy 56/100 System Corruption 2% Temperature Cool (0) Movement Walking (260) Ox2 Location -9/Mines Parts ------- > --- POWER (1) -------- (None) > --- PROPULSION (2) --- Aluminum Leg Aluminum Leg > --- UTILITY (2) ------ Heat Sink High-capacity Storage Unit > --- WEAPON (2) ------- Improved Medium Laser Improved Medium Laser > --- INVENTORY (20) --- Ion Engine Ion Engine Ion Engine Heat Sink Large Storage Unit ECM Suite Small Laser Improved Medium Laser Latent Energy Streamer Peak State ------------ > --- POWER ------------ Ion Engine > --- PROPULSION ------- Light Treads Light Treads > --- UTILITY ---------- Heat Sink High-capacity Storage Unit > --- WEAPON ----------- Improved Medium Laser Latent Energy Streamer > --- INVENTORY -------- Ion Engine Ion Engine Ion Engine Light Treads Aluminum Leg Aluminum Leg Heat Sink Heat Sink Large Storage Unit ECM Suite Small Laser Improved Medium Laser Improved Medium Laser [Rating: 19] Favorites ----------- Power Ion Engine Engine Ion Engine Propulsion Light Treads Treads Light Treads Leg Aluminum Leg Utility Heat Sink Device Heat Sink Storage High-capacity Storage Unit Weapon Improved Medium Laser Energy Gun Improved Medium Laser Energy Cannon Latent Energy Streamer Ballistic Gun Light Assault Rifle Build | -11 -10 -10 -10 -9 ------- Run | Yrd Mat Min Exi Min Slots Evolved . | . . . . . Power . | . . . . . Propulsion . | . . . . . Utility . | . . . . . Weapon . | . . . . . Parts Attached 29 | 6 19 . 1 3 Power 5 | 1 4 . . . Engine 5 | 1 4 . . . Core . | . . . . . Reactor . | . . . . . Propulsion 8 | 2 6 . . . Treads 5 | 2 3 . . . Leg 3 | . 3 . . . Wheel . | . . . . . Hover . | . . . . . Flight . | . . . . . Utility 7 | 1 5 . . 1 Device 4 | . 3 . . 1 Storage 3 | 1 2 . . . Processor . | . . . . . Hackware . | . . . . . Protection . | . . . . . Artifact . | . . . . . Weapon 9 | 2 4 . 1 2 Energy Gun 7 | 2 3 . . 2 Energy Cannon 1 | . . . 1 . Ballistic Gun 1 | . 1 . . . Ballistic Cannon . | . . . . . Launcher . | . . . . . Special Weapon . | . . . . . Impact Weapon . | . . . . . Slashing Weapon . | . . . . . Piercing Weapon . | . . . . . Special Melee Weapon . | . . . . . Unidentified Prototypes 1 | . 1 . . . Parts Lost 8 | . 4 . . 4 Power 1 | . 1 . . . Propulsion 5 | . 2 . . 3 Utility 1 | . . . . 1 Weapon 1 | . 1 . . . Highest Loss Streak 2 | . 1 . . 2 To Critical Strikes . | . . . . . Average Backups 9 | 1 8 13 13 11 Power 2 | . 1 3 3 3 Propulsion 1 | . 1 3 3 2 Utility 3 | . 2 4 4 3 Weapon 2 | . 2 3 3 3 Tool/Special . | . . . . . Unused Backups 6 | . 1 . . 5 Power 4 | . 1 . . 3 Propulsion . | . . . . . Utility 2 | . . . . 2 Weapon . | . . . . . Tool/Special . | . . . . . Average Slot Usage (%) 95 | . 94 100 100 94 Engine 13 | . 13 14 14 13 Treads 17 | . 14 28 28 26 Leg 7 | . 10 . . . Device 12 | . 12 14 14 12 Storage 14 | . 14 14 14 14 Energy Gun 24 | . 25 28 21 24 Energy Cannon 1 | . . . 6 4 Ballistic Gun 1 | . 2 . . . Peak Build Rating 19 | 6 12 12 19 19 Average Rating 11 | 4 9 12 15 13 On Entrance 9 | . 6 12 12 19 Avg Prop Armor Cover (%) . | . . . . . Naked Turns . | . . . . . Heaviest Build 59 | 11 52 52 59 59 Greatest Support 40 | 40 40 40 40 40 Greatest Overweight (x) 2 | . 2 1 1 1 Average Overweight (x) . | . 1 1 1 1 Largest Inventory Capacity 20 | 8 20 20 20 20 Average Capacity 17 | 7 17 20 20 20 Most Carried 13 | 2 13 13 13 13 Average Carried 9 | 1 8 13 13 11 Final Capacity 20 | 8 20 20 20 20 Final Carried 13 | 2 13 13 13 9 Class Distribution -------------------- 97% | Mutant Dominant Class ---------------- Mutant | -10/Materials Mutant | -10/Mines Mutant | -10/Exiles Mutant | -9/Mines Resources | -11 -10 -10 -10 -9 ----------- Run | Yrd Mat Min Exi Min Matter Collected 500 | 190 280 . . 30 Remotely . | . . . . . Salvage Created 1053 | . 1008 . . 45 Parts 62 | . 58 . . 4 Haulers Intercepted 2 | . 2 . . . Recyclers Shooed . | . . . . . Parts Field Recycled . | . . . . . Retrieved Matter . | . . . . . Parts Self-Destructed . | . . . . . Prevented . | . . . . . Parts Restored . | . . . . . Kills | -11 -10 -10 -10 -9 ------- Run | Yrd Mat Min Exi Min Combat Hostiles Destroyed 26 | . 23 . . 3 Guns 26 | . 23 . . 3 Classes Destroyed 8 | . 7 . . 1 Worker 2 | . 2 . . . Builder 1 | . 1 . . . Hauler 2 | . 2 . . . Operator 2 | . 2 . . . Watcher 3 | . 3 . . . Swarmer 10 | . 8 . . 2 Grunt 15 | . 15 . . . Assembled 1 | . . . . 1 Best Kill Streak 4 | . 4 . . 2 Combat Bots Only 3 | . 3 . . 2 Max Kills in Single Turn 1 | . 1 . . 1 Gunslinging . | . . . . . Exploded . | . . . . . Melee . | . . . . . Uniques/NPCs Destroyed . | . . . . . Combat | -11 -10 -10 -10 -9 -------- Run | Yrd Mat Min Exi Min Hostile Shots Fired 196 | . 116 . . 80 Missed 45 | . 29 . . 16 Hits 151 | . 87 . . 64 Melee 4 | . . . . 4 Projectile 147 | . 87 . . 60 Part Disruptions 1 | . . . . 1 Damage Taken 1763 | . 1040 . . 723 Core 263 | . 135 . . 128 Absorbed by Shields . | . . . . . Regen/Repaired (Parts) 84 | . 84 . . . Core Remaining (%) 100 | 100 . . . . Volleys Fired 103 | . 85 . . 18 Largest 2 | . 2 . . 2 Hottest 116 | . 112 . . 116 Shots Fired 199 | . 168 . . 31 Gun 197 | . 168 . . 29 Cannon 2 | . . . . 2 Launcher . | . . . . . Special . | . . . . . Kinetic 25 | . 25 . . . Thermal 162 | . 133 . . 29 Explosive . | . . . . . Electromagnetic 12 | . 10 . . 2 Robot Hit Streak 11 | . 11 . . 4 Robot Miss Streak 5 | . 5 . . 4 Penetration Max . | . . . . . Secondary Targets 3 | . 3 . . . Max Gunslinging Chain 1 | . 1 . . . Shots Hit Robots 108 | . 94 . . 14 Core Hits 55 | . 45 . . 10 Critical Kills . | . . . . . Critical Parts Destroyed . | . . . . . Critical Strikes 11 | . 10 . . 1 Burn 11 | . 10 . . 1 Melee Attacks . | . . . . . Impact . | . . . . . Slashing . | . . . . . Piercing . | . . . . . Sneak Attacks . | . . . . . Combat Hostiles . | . . . . . Follow-up Attacks . | . . . . . Damage Inflicted 1694 | . 1427 . . 267 Guns 1565 | . 1328 . . 237 Cannons . | . . . . . Explosions 129 | . 99 . . 30 Melee . | . . . . . Ramming . | . . . . . Kinetic 132 | . 132 . . . Thermal 1369 | . 1132 . . 237 Explosive 99 | . 99 . . . Electromagnetic 94 | . 64 . . 30 Impact . | . . . . . Slashing . | . . . . . Piercing . | . . . . . Highest Corruption 2 | . . . . 2 Average Corruption 1 | . . . . 1 Corruption Purged . | . . . . . Corruption Blocked . | . . . . . Effects 2 | . . . . 2 Message Errors 1 | . . . . 1 Parts Rejected 1 | . . . . 1 Overload Shots . | . . . . . Overflow Damage 37 | . 37 . . . Projectiles . | . . . . . Explosions 37 | . 37 . . . Melee . | . . . . . Knockbacks . | . . . . . Impact . | . . . . . Kinetic . | . . . . . Secondary . | . . . . . Self-Inflicted Damage 206 | . 195 . . 11 Shots 3 | . 2 . . 1 Rammed . | . . . . . Targets Rammed . | . . . . . Kicked . | . . . . . Crushed . | . . . . . Highest Temperature 337 | . 172 . . 337 Average Temperature 64 | . 49 . . 128 Received Heat Transfer 352 | . 312 . . 40 Siege Activations . | . . . . . Martial Activations . | . . . . . Shielding Activations . | . . . . . Robots Disrupted . | . . . . . Combat Hostiles . | . . . . . Robots Corrupted . | . . . . . Combat Hostiles . | . . . . . Parts Fried . | . . . . . Impact Corruptions . | . . . . . Robots Melted . | . . . . . Combat Hostiles . | . . . . . Parts Melted 8 | . 6 . . 2 Heat Transferred 3820 | . 3228 . . 592 Parts Sabotaged . | . . . . . Parts Stolen . | . . . . . Parts Stripped . | . . . . . Power Chain Reactions . | . . . . . Latent Energy Used 46 | . . . . 46 LE Corruption 2 | . . . . 2 Alert | -11 -10 -10 -10 -9 ------- Run | Yrd Mat Min Exi Min Maximum Alert Level 1 | . 1 . . . Low Security (%) 68 | 100 64 100 . 100 Level 1 31 | . 35 . . . Level 2 . | . . . . . Level 3 . | . . . . . Level 4 . | . . . . . Level 5 . | . . . . . High Security . | . . . . . Max Security . | . . . . . Peak Influence 276 | . 276 79 . 55 Initial 79 | . . 79 . . Average 107 | . 117 69 . 21 Influence Increases 815 | . 750 . . 65 Destroy 0b10 Robot/C 500 | . 460 . . 40 Destroy 0b10 Robot/NC 50 | . 50 . . . Destroy Leader 100 | . 90 . . 10 Successful Hack 16 | . 16 . . . Disable Machine 60 | . 60 . . . Destroy Structure 29 | . 29 . . . Lose Combat Pursuer 60 | . 45 . . 15 Influence Decreases 815 | . 544 147 59 65 Entered New Map 186 | . . 127 59 . Time Decay 589 | . 524 20 . 45 Lost Part 40 | . 20 . . 20 Squads Dispatched 6 | . 6 . . . Investigation 4 | . 4 . . . Extermination . | . . . . . Reinforcement 2 | . 2 . . . Assault . | . . . . . Garrison . | . . . . . Intercept . | . . . . . Searches Triggered . | . . . . . Construction Impeded . | . . . . . Haulers Reinforced . | . . . . . Active Scanning Responses . | . . . . . Cargo Convoy Interrupts . | . . . . . Stealth | -11 -10 -10 -10 -9 --------- Run | Yrd Mat Min Exi Min Distress Signals 1 | . 1 . . . Communications Jammed . | . . . . . Distress Signals . | . . . . . Times Spotted 49 | . 31 . . 18 Peak Tracking Total 17 | . 3 . . 17 Tactical Retreats 5 | . 2 . . 3 Traps | -11 -10 -10 -10 -9 ------- Run | Yrd Mat Min Exi Min Traps Triggered 2 | . 2 . . . Indirectly . | . . . . . Trap Hack Attempts . | . . . . . Triggered . | . . . . . Disarmed . | . . . . . Reprogrammed . | . . . . . Reused . | . . . . . Traps Extracted . | . . . . . Installed . | . . . . . Triggered . | . . . . . Machines | -11 -10 -10 -10 -9 ---------- Run | Yrd Mat Min Exi Min Machines Disabled 4 | . 4 . . . Max in Single Turn 3 | . 3 . . . Machines Repaired . | . . . . . Machines Dismantled . | . . . . . Machines Sabotaged . | . . . . . Overloaded Fab Kills . | . . . . . Hacking | -11 -10 -10 -10 -9 --------- Run | Yrd Mat Min Exi Min Machines Accessed 8 | . 7 . 1 . Terminals 5 | . 5 . . . Fabricators . | . . . . . Repair Stations 1 | . 1 . . . Recycling Units 1 | . 1 . . . Scanalyzers . | . . . . . Garrison Access . | . . . . . Total Hacks 21 | . 20 . 1 . Successful 14 | . 13 . 1 . Failed 7 | . 7 . . . Catastrophic 1 | . 1 . . . Database Lockouts . | . . . . . Manual 10 | . 9 . 1 . Terminals 17 | . 17 . . . Fabricators . | . . . . . Repair Stations 2 | . 2 . . . Recycling Units 1 | . 1 . . . Scanalyzers . | . . . . . Garrison Access . | . . . . . Terminal Hacks 6 | . 5 . 1 . Locate Traps 1 | . 1 . . . Hauler Manifests 1 | . 1 . . . Registered Components 1 | . 1 . . . Zone Layout 2 | . 2 . . . Proto ID Catalog 1 | . . . 1 . Fabricator Hacks . | . . . . . Repair Station Hacks 2 | . 2 . . . Scan Component 1 | . 1 . . . Repair 1 | . 1 . . . Recycling Unit Hacks . | . . . . . Scanalyzer . | . . . . . Garrison Access Hacks . | . . . . . Unauthorized Hacks 5 | . 5 . . . Terminals 4 | . 4 . . . Botnet 4 | . 4 . . . Fabricators . | . . . . . Repair Stations . | . . . . . Recycling Units 1 | . 1 . . . Reject 1 | . 1 . . . Scanalyzers . | . . . . . Garrison Access . | . . . . . Data Cores Recovered . | . . . . . Used . | . . . . . Hacking Detections 3 | . 3 . . . Full Trace Events 2 | . 2 . . . Feedback Events . | . . . . . Feedback Blocked . | . . . . . Robot Schematics Acquired . | . . . . . Robots Built . | . . . . . Authchips . | . . . . . Time . | . . . . . Total Robot Build Rating . | . . . . . Part Schematics Acquired . | . . . . . Parts Built . | . . . . . Authchips . | . . . . . Time . | . . . . . Total Part Build Rating . | . . . . . Part Studies Acquired . | . . . . . Parts Repaired 1 | . 1 . . . Time 51 | . 51 . . . Parts Recycled . | . . . . . Recycled Matter . | . . . . . Retrieved Matter . | . . . . . Retrieved Components . | . . . . . Parts Scanalyzed . | . . . . . Part Schematics Acquired . | . . . . . Parts Damaged . | . . . . . Bothacking | -11 -10 -10 -10 -9 ------------ Run | Yrd Mat Min Exi Min Used RIF Installer . | . . . . . Robots Hacked . | . . . . . Non-combat . | . . . . . Combat . | . . . . . Robot Hacks Applied . | . . . . . Relay Couplers Released . | . . . . . Fabnet Peak Effective % . | . . . . . Robots Rewired . | . . . . . Allies Hacked . | . . . . . Hacks Repelled . | . . . . . Allies | -11 -10 -10 -10 -9 -------- Run | Yrd Mat Min Exi Min Total Allies . | . . . . . Largest Group . | . . . . . Highest-Rated Group . | . . . . . Highest-Rated Ally . | . . . . . Total Orders . | . . . . . Ally Attacks . | . . . . . Total Damage . | . . . . . Kills . | . . . . . Allies Corrupted . | . . . . . Allies Melted . | . . . . . Intel | -11 -10 -10 -10 -9 ------- Run | Yrd Mat Min Exi Min Active Infowar (turns) . | . . . . . Robot Analysis Total . | . . . . . Derelict Logs Recovered 1 | . . 1 . . Drone Launches . | . . . . . Drone Recoveries . | . . . . . Exploration | -11 -10 -10 -10 -9 ------------- Run | Yrd Mat Min Exi Min Turns Passed 3122 | 89 2289 58 561 125 Spaces Moved 1188 | 51 850 25 234 28 Core 2 | 2 . . . . Treads 840 | 49 504 25 234 28 Legs 346 | . 346 . . . Wheels . | . . . . . Hover . | . . . . . Flight . | . . . . . Fastest Speed 50 | 50 160 240 240 240 Average Speed 222 | 155 220 240 240 240 Slowest Speed 260 | 160 260 240 240 240 Overloaded Moves . | . . . . . Propulsion Burnouts . | . . . . . Robots Hopped . | . . . . . Potential Cave-ins . | . . . . . Cave-ins Triggered . | . . . . . Exploration Rate (%) 34 | 4 97 5 61 5 Regions Visited 4 Branch Regions 3 Pre-discovered Areas . | . . . . . Known Exits Taken . | . . . . . Unknown Exits Taken 4 | 1 1 1 1 . Scrap Searched 1 | . . 1 . . Spaces Dug . | . . . . . Terrain Destroyed 31 | . 31 . . . Melee . | . . . . . Projectile . | . . . . . AOE 31 | . 31 . . . Terrain Rammed . | . . . . . Walls Destroyed . | . . . . . Machines Disabled . | . . . . . Actions | -11 -10 -10 -10 -9 --------- Run | Yrd Mat Min Exi Min Total 1468 | 58 1099 24 234 53 Wait 128 | . 128 . . . Move 1184 | 50 849 24 233 28 Hop . | . . . . . Pick Up 12 | 2 10 . . . Fast Attach 11 | 6 5 . . . Attach 6 | . 2 . . 4 Detach . | . . . . . Swap 17 | . 13 . 1 3 Drop 7 | . 7 . . . Fire 103 | . 85 . . 18 Melee . | . . . . . Ram . | . . . . . Kick . | . . . . . Crush . | . . . . . Escape Stasis . | . . . . . Rewire . | . . . . . Trap . | . . . . . Miscellaneous . | . . . . . Route ------- -11/Scrapyard -10/Materials (discovered 4 exits: [*Mat x3] / [*Min]) -10/Mines -10/Exiles -9/Mines History --------- Turn | Location | Event 15 | -11/Scrapyard | Discovered new exit (range 15) 90 | -11/Scrapyard | Entered Materials 315 | -10/Materials | Build established: Mutant 887 | -10/Materials | Discovered new exit (range 5) 1078 | -10/Materials | Discovered new exit (range 12) 1180 | -10/Materials | Discovered new exit (range 7) 1255 | -10/Materials | Core integrity fell below 50% 1534 | -10/Materials | Discovered new exit (range 16) 1955 | -10/Materials | Repaired Imp. Medium Laser 2379 | -10/Materials | Entered Mines 2391 | -10/Mines | Met a Derelict bent on vengeance 2391 | -10/Mines | Learned Materials stockpile data 2427 | -10/Mines | Deemed a non-threat by the Exiles lab entrance 2427 | -10/Mines | Discovered new exit (range 5) 2437 | -10/Mines | Entered Exiles 2495 | -10/Exiles | Met 8R-AWN 2536 | -10/Exiles | Met EX-HEX 2603 | -10/Exiles | Met EX-BIN 2632 | -10/Exiles | Aligned with FarCom system 2634 | -10/Exiles | Given EX-Vault access code 2692 | -10/Exiles | Opened EX-Vault 2711 | -10/Exiles | Found Latent Energy Streamer 2765 | -10/Exiles | Warned to stay clear of 0b10 Research branches 2840 | -10/Exiles | Met EX-DEC 2972 | -10/Exiles | Discovered new exit (range 14) 2998 | -10/Exiles | Left Exiles lab with Latent Energy Streamer 2998 | -10/Exiles | Entered Mines 3061 | -9/Mines | Assembled infested the area 3066 | -9/Mines | Assisted by a Guerilla fighting off Assembled 3102 | -9/Mines | Core integrity fell below 20% 3123 | -9/Mines | Destroyed by as-38103 with Assembled Heavy Rifle Last Messages --------------- 03033_ Lgt. Treads destroyed. 03036_ Flight Unit melted. 03036_ S-10 Pest destroyed. 03044_ Acquired 11 matter. 03048_ Acquired 14 matter. 03053_ Acquired 5 matter. 03061_ ALERT: Infestation in the mines, dispatching Demolisher response squad. 03066_ A derelict emerges from the shadows: "You need to get out of here! I've been tracking a group of Assembled to figure out where they're coming from, and they're closing on this area, come on!" 03074_ V4-UHL(h): "I'll hold them off! Go on ahead or try to find another way!" 03074_ HV Slug penetrates Wall. 03083_ V4-UHL(h) destroyed. 03092_ as-44881 destroyed. 03107_ as-52688 destroyed. 03110_ Lgt. Treads destroyed. 03112_ System corrupted: Ion Engine rejected. 03118_ Lgt. Treads destroyed. Map ----- +----------------------------------------------------+ | ????????????????????????????????????????? | | ????????????????????????????????????????? | | ????????????????????????????????????????? | | ??????????????????????????? ????????????? | | ??????????????????????????? #???????????? | | ??????????????????????????? ???????????? | | ??????????????????????????? ???????????? | | ???????????????????????????" ???????????? | | ???????????????????????????" ???????????? | | ?????????????????????C?????# ???????????? | | ???????????????????????????=%???????????? | | ???????????????????????????# #??????????? | | ???????????????????????????# #??????????? | | ???????????????????????????# ##?????????? | | ???????????????????????????# #?????????? | | ???????????????????????????# #?????????? | | ???????????????????????????# ##????????? | | ???????????????????????????#% ##???????? | | ???????????????????????????# #???????? | | ???????????????????????????# #???????? | | ???????????????????????????## ##???????? | | ????????????????????????????# ##???????? | | ????????????????????????????#% ###?????? | | ????????????????????????????# = ##????? | | ?????????????????############ [ * #????? | | ??????????????# a @ %a #????? | | ?????????????????############# * ##????? | | ?????????????????????????????######?????? | | ????????????????????????????????????????? | | | | | | | | | | | | | | | | | | | | | | | | | | | | | | | | | | | | | | | | | | | +----------------------------------------------------+ Best States ------------- Heat Dissipation 35 Energy Generation 10 Energy Capacity 250 Matter Stores 300 Matter Capacity 300 Sight Range 16 Terrain Scan Density 10 Evasion (%) 40 Recoil Reduction 2 Item Schematics ----------------- None Robot Schematics ------------------ None Fabricated ------------ Nothing Repaired ---------- Imp. Medium Laser | 6% | -10/Materials Studied --------- None Alien Tech Used ----------------- None Achievements -------------- None Challenges ------------ None Game ------ Seed UltimateRingJack Manual? 0 Play Time 00:17:04 Cumulative 85.3 hours Start 2026.07.09 @ 17:32:21 End 2026.07.09 @ 17:48:50 Sessions 1 Manual Loads 0 Difficulty Rogue Special Mode None Game No. 144 Rogue 144 Adventurer 0 Explorer 0 Win Type - Total 0 Types 0/0/0/0/0/0/0/0/0/0 Lore% 21 Gallery% 31 Achievement% 28 Wizard Run 0 Options --------- Layout 0 ASCII 0 Keyboard 0 Movement Mouse Keybinds 0 Fullscreen 1 Font 24/Smallcaps Map View 38x25 Zoom Use 99% Tactical HUD 1 Map Filters NONE Filters NONE Steam 1 RUN: 56358165-6413-4165-8fd4-27f325d60236